fUSD/lending_fUSD_20250514
["ID","MTS","AMOUNT","RATE_DAILY","PERIOD"]
[361010583,1747203032969,-400.0,0.00010958,2]
[361010584,1747203032980,-400.0,0.00010958,2]
[361010585,1747203032989,-423.50810485,0.00010958,2]
[361010586,1747203032998,-400.0,0.00010958,2]
[361010587,1747203033009,-400.0,0.00010958,2]
[361010588,1747203033018,-401.03098154,0.00010958,2]
[361010589,1747203033028,-400.0,0.00010958,2]
[361010590,1747203033037,-400.0,0.00010958,2]
[361010591,1747203033047,-400.0,0.00010958,2]
[361010592,1747203033057,-302.01277501,0.00010958,2]
[361010593,1747203033066,-717.4,0.00010958,2]
[361010594,1747203033076,-404.41143581,0.00010958,2]
[361010595,1747203033085,-400.0,0.00010958,2]
[361010596,1747203033096,-500.0,0.00010958,2]
[361010597,1747203033106,-400.0,0.00010958,2]
[361010598,1747203033116,-400.0,0.00010958,2]
[361010599,1747203033127,-400.0,0.00010958,2]
[361010600,1747203033137,-400.0,0.00010958,2]
[361010601,1747203033147,-400.0,0.00010958,2]
[361010602,1747203033158,-400.0,0.00010958,2]
[361010603,1747203033167,-251.8099291,0.00010958,2]
[361010604,1747203033177,-400.0,0.00010958,2]
[361010605,1747203033187,-881.18,0.00010958,2]
[361010606,1747203033197,-449.86,0.00010958,2]
[361010607,1747203033207,-400.0,0.00010958,2]
[361010608,1747203033217,-400.0,0.00010958,2]
[361010609,1747203033226,-400.0,0.00010958,2]
[361010610,1747203033236,-400.0,0.00010958,2]
[361010611,1747203033246,-400.0,0.00010958,2]
[361010612,1747203033256,-546.26,0.00010958,2]
[361010613,1747203033266,-425.14573271,0.00010958,2]
[361010614,1747203033275,-400.0,0.00010958,2]
[361010615,1747203033285,-400.0,0.00010958,2]
[361010616,1747203033305,-400.0,0.00010958,2]
[361010617,1747203033316,-400.0,0.00010958,2]
[361010618,1747203033326,-400.0,0.00010958,2]
[361010619,1747203033336,-400.0,0.00010958,2]
[361010620,1747203033346,-400.0,0.00010958,2]
[361010621,1747203033356,-400.0,0.00010958,2]
[361010622,1747203033367,-400.0,0.00010958,2]
[361010623,1747203033377,-400.0,0.00010958,2]
[361010624,1747203033387,-400.0,0.00010958,2]
[361010625,1747203033397,-922.99,0.00010958,2]
[361010626,1747203033406,-780.96,0.00010958,2]
[361010627,1747203033417,-400.0,0.00010958,2]
[361010628,1747203033426,-500.0,0.00010958,2]
[361010629,1747203033437,-400.0,0.00010958,2]
[361010630,1747203033447,-400.0,0.00010958,2]
[361010631,1747203033457,-464.9,0.00010958,2]
[361010632,1747203033467,-400.0,0.00010958,2]
[361010633,1747203033477,-242.43426827,0.00010958,2]
[361010634,1747203033486,-1175.53,0.00010958,2]
[361010635,1747203033496,-567.19,0.00010958,2]
[361010636,1747203033506,-400.0,0.00010958,2]
[361010637,1747203033516,-400.0,0.00010958,2]
[361010638,1747203033526,-400.0,0.00010958,2]
[361010639,1747203033536,-400.0,0.00010958,2]
[361010640,1747203033546,-400.0,0.00010958,2]
[361010641,1747203033556,-593.71,0.00010958,2]
[361010642,1747203033566,-531.81,0.00010958,2]
[361010643,1747203033576,-403.97722106,0.00010958,2]
[361010644,1747203033586,-470.11340683,0.00010958,2]
[361010645,1747203033595,-400.0,0.00010958,2]
[361010646,1747203033604,-972.0,0.00010958,2]
[361010647,1747203033614,-2700.37,0.00010958,2]
[361010648,1747203033625,-400.0,0.00010958,2]
[361010649,1747203033635,-400.0,0.00010958,2]
[361010650,1747203033645,-400.0,0.00010958,2]
[361010651,1747203033655,-400.20944695,0.00010958,2]
[361010652,1747203033665,-2669.72,0.00010958,2]
[361010653,1747203033675,-400.0,0.00010958,2]
[361010654,1747203033685,-503.69,0.00010958,2]
[361010655,1747203033699,-1002.27841792,0.00010958,2]
[361010656,1747203033709,-400.0,0.00010958,2]
[361010657,1747203033719,-400.0,0.00010958,2]
[361010658,1747203033729,-1188.18,0.00010958,2]
[361010659,1747203033739,-400.0,0.00010958,2]
[361010660,1747203033749,-400.0,0.00010958,2]
[361010661,1747203033759,-404.08925243,0.00010958,2]
[361010662,1747203033769,-400.0,0.00010958,2]
[361010663,1747203033780,-400.0,0.00010958,2]
[361010664,1747203033790,-400.0,0.00010958,2]
[361010665,1747203033807,-400.0,0.00010958,2]
[361010666,1747203033817,-400.0,0.00010958,2]
[361010667,1747203033827,-358.0,0.00010958,2]
[361010668,1747203033837,-400.0,0.00010958,2]
[361010669,1747203033847,-400.0,0.00010958,2]
[361010670,1747203033857,-400.0,0.00010958,2]
[361010671,1747203033867,-400.0,0.00010958,2]
[361010672,1747203033876,-400.0,0.00010958,2]
[361010673,1747203033886,-400.0,0.00010958,2]
[361010674,1747203033896,-400.0,0.00010958,2]
[361010675,1747203033905,-490.69957762,0.00010958,2]
[361010676,1747203033915,-475.04,0.00010958,2]
[361010677,1747203033925,-400.0,0.00010958,2]
[361010678,1747203033934,-400.0,0.00010958,2]
[361010679,1747203033947,-400.0,0.00010958,2]
[361010680,1747203033957,-202.30390307,0.00010958,2]
[361010681,1747203033972,-404.77903032,0.00010958,2]
[361010682,1747203033983,-400.0,0.00010958,2]
[361010683,1747203033993,-400.0,0.00010958,2]
[361010684,1747203034003,-630.99,0.00010958,2]
[361010685,1747203034014,-496.01,0.00010958,2]
[361010686,1747203034024,-400.00733638,0.00010958,2]
[361010687,1747203034034,-739.02,0.00010958,2]
[361010688,1747203034045,-171.366968,0.00010958,2]
[361010689,1747203034055,-400.0,0.00010958,2]
[361010690,1747203034064,-400.0,0.00010958,2]
[361010691,1747203034074,-490.89705602,0.00010958,2]
[361010692,1747203034084,-400.0,0.00010958,2]
[361010693,1747203034094,-400.0,0.00010958,2]
[361010694,1747203034104,-400.0,0.00010958,2]
[361010695,1747203034113,-917.43,0.00010958,2]
[361010696,1747203034123,-400.0,0.00010958,2]
[361010697,1747203034132,-3373.664934,0.00010958,2]
[361010698,1747203034142,-494.01,0.00010958,2]
[361010699,1747203034151,-400.0,0.00010958,2]
[361010700,1747203034161,-450.77002439,0.00010958,2]
[361010701,1747203034171,-400.0,0.00010958,2]
[361010702,1747203034181,-400.0,0.00010958,2]
[361010703,1747203034191,-240.06362406,0.00010958,2]
[361010704,1747203034202,-407.54629242,0.00010958,2]
[361010705,1747203034211,-1072.14,0.00010958,2]
[361010706,1747203034221,-400.0,0.00010958,2]
[361010707,1747203034231,-400.0,0.00010958,2]
[361010708,1747203034242,-400.0,0.00010958,2]
[361010709,1747203034251,-400.0,0.00010958,2]
[361010710,1747203034261,-400.0,0.00010958,2]
[361010711,1747203034271,-400.0,0.00010958,2]
[361010712,1747203034281,-400.0,0.00010958,2]
[361010713,1747203034291,-401.22630988,0.00010958,2]
[361010714,1747203034300,-400.0,0.00010958,2]
[361010715,1747203034310,-400.0,0.00010958,2]
[361010716,1747203034319,-400.0,0.00010958,2]
[361010717,1747203034329,-400.0,0.00010958,2]
[361010718,1747203034339,-400.0,0.00010958,2]
[361010719,1747203034349,-400.0,0.00010958,2]
[361010720,1747203034358,-178.14010293,0.00010958,2]
[361010721,1747203034368,-400.0,0.00010958,2]
[361010722,1747203034378,-400.0,0.00010958,2]
[361010723,1747203034388,-546.38,0.00010958,2]
[361010724,1747203034398,-400.0,0.00010958,2]
[361010725,1747203034408,-400.0,0.00010958,2]
[361010726,1747203034418,-628.23,0.00010958,2]
[361010727,1747203034428,-400.0,0.00010958,2]
[361010728,1747203034438,-400.0,0.00010958,2]
[361010729,1747203034448,-616.99,0.00010958,2]
[361010730,1747203034459,-400.0,0.00010958,2]
[361010731,1747203034472,-445.63256898,0.00010958,2]
[361010732,1747203034482,-400.0,0.00010958,2]
[361010733,1747203034492,-418.21,0.00010958,2]
[361010734,1747203034501,-400.0,0.00010958,2]
[361010735,1747203034511,-379.29686615,0.00010958,2]
[361010736,1747203034520,-429.44,0.00010958,2]
[361010737,1747203034530,-400.0,0.00010958,2]
[361010738,1747203034539,-452.01783252,0.00010958,2]
[361010739,1747203034549,-400.0,0.00010958,2]
[361010740,1747203034559,-400.0,0.00010958,2]
[361010741,1747203034568,-400.0,0.00010958,2]
[361010742,1747203034578,-400.0,0.00010958,2]
[361010743,1747203034588,-283.08649837,0.00010958,2]
[361010744,1747203034598,-685.32,0.00010958,2]
[361010745,1747203034608,-111.0290241,0.00010958,2]
[361010746,1747203034675,-288.9709759,0.00010958,2]
[361010747,1747203034685,-400.0,0.00010958,2]
[361010748,1747203034695,-397.7603183,0.00010958,2]
[361010749,1747203034707,-2.2396817,0.00010958,2]
[361010750,1747203034718,-400.0,0.00010958,2]
[361010751,1747203034728,-140.2293033,0.00010958,2]
[361010752,1747203034902,-259.7706967,0.00010958,2]
[361010753,1747203034912,-932.36,0.00010958,2]
[361010754,1747203034922,-400.0,0.00010958,2]
[361010755,1747203034931,-400.0,0.00010958,2]
[361010756,1747203034941,-400.0,0.00010958,2]
[361010757,1747203034950,-710.74,0.00010958,2]
[361010758,1747203034960,-535.78,0.00010958,2]
[361010759,1747203034974,-400.0,0.00010958,2]
[361010760,1747203034984,-400.0,0.00010958,2]
[361010761,1747203034993,-351.44434826,0.00010958,2]
[361010762,1747203035014,-161.26010122,0.00010958,2]
[361010763,1747203035024,-433.52,0.00010958,2]
[361010764,1747203035033,-400.0,0.00010958,2]
[361010765,1747203035043,-415.72786652,0.00010958,2]
[361010766,1747203035053,-400.0,0.00010958,2]
[361010767,1747203035063,-400.0,0.00010958,2]
[361010768,1747203035074,-400.0,0.00010958,2]
[361010769,1747203035084,-451.63,0.00010958,2]
[361010770,1747203035093,-406.11625125,0.00010958,2]
[361010771,1747203035108,-400.0,0.00010958,2]
[361010772,1747203035119,-267.32862116,0.00010958,2]
[361010773,1747203035136,-132.67137884,0.00010958,2]
[361010774,1747203035150,-289.60024042,0.00010958,2]
[361010775,1747203035178,-110.39975958,0.00010958,2]
[361010776,1747203035189,-394.02024042,0.00010958,2]
[361010777,1747203035201,-5.97975958,0.00010958,2]
[361010778,1747203035212,-400.0,0.00010958,2]
[361010779,1747203035222,-400.0,0.00010958,2]
[361010780,1747203035231,-400.0,0.00010958,2]
[361010781,1747203035241,-193.95214399,0.00010958,2]
[361010782,1747203035253,-206.04785601,0.00010958,2]
[361010783,1747203035262,-400.0,0.00010958,2]
[361010784,1747203035272,-400.0,0.00010958,2]
[361010785,1747203035281,-481.08,0.00010958,2]
[361010786,1747203035291,-478.9346606,0.00010958,2]
[361010787,1747203035300,-400.30633835,0.00010958,2]
[361010788,1747203035309,-400.0,0.00010958,2]
[361010789,1747203035319,-400.0,0.00010958,2]
[361010790,1747203035328,-400.0,0.00010958,2]
[361010791,1747203035338,-400.0,0.00010958,2]
[361010792,1747203035347,-400.0,0.00010958,2]
[361010793,1747203035357,-336.2435046,0.00010958,2]
[361010794,1747203035367,-400.0,0.00010958,2]
[361010795,1747203035377,-201.05839118,0.00010958,2]
[361010796,1747203035387,-400.0,0.00010958,2]
[361010797,1747203035396,-400.0,0.00010958,2]
[361010798,1747203035406,-400.0,0.00010958,2]
[361010799,1747203035415,-400.0,0.00010958,2]
[361010800,1747203035425,-400.0,0.00010958,2]
[361010801,1747203035434,-537.64,0.00010958,2]
[361010802,1747203035445,-928.08,0.00010958,2]
[361010803,1747203035454,-400.0,0.00010958,2]
[361010804,1747203035463,-500.49014576,0.00010958,2]
[361010805,1747203035472,-400.0,0.00010958,2]
[361010806,1747203035482,-1172.68751438,0.00010958,2]
[361010807,1747203035495,-244.24248562,0.00010958,2]
[361010808,1747203035504,-201.24940651,0.00010958,2]
[361010809,1747203035590,-198.75059349,0.00010958,2]
[361010810,1747203035601,-400.0,0.00010958,2]
[361010811,1747203035611,-322.190521,0.00010958,2]
[361010812,1747203035620,-150.182145,0.00010958,2]
[361010813,1747203035630,-285.70428741,0.00010958,2]
[361010814,1747203035640,-400.0,0.00010958,2]
[361010815,1747203035650,-400.0,0.00010958,2]
[361010816,1747203035660,-400.0,0.00010958,2]
[361010817,1747203035669,-400.0,0.00010958,2]
[361010818,1747203035679,-400.0,0.00010958,2]
[361010819,1747203035689,-400.0,0.00010958,2]
[361010820,1747203035700,-400.0,0.00010958,2]
[361010821,1747203035710,-400.0,0.00010958,2]
[361010822,1747203035719,-400.0,0.00010958,2]
[361010823,1747203035728,-400.0,0.00010958,2]
[361010824,1747203035750,-400.0,0.00010958,2]
[361010825,1747203035767,-400.0,0.00010958,2]
[361010826,1747203035785,-396.7655104,0.00010958,2]
[361010827,1747203035805,-412.64965051,0.00010958,2]
[361010828,1747203035822,-400.0,0.00010958,2]
[361010829,1747203035838,-172.16740812,0.00010958,2]
[361010830,1747203035862,-227.83259188,0.00010958,2]
[361010831,1747203035881,-400.0,0.00010958,2]
[361010832,1747203035900,-400.0,0.00010958,2]
[361010833,1747203035918,-409.04663169,0.00010958,2]
[361010834,1747203035939,-400.0,0.00010958,2]
[361010835,1747203035960,-400.0,0.00010958,2]
[361010836,1747203035977,-400.0,0.00010958,2]
[361010837,1747203035997,-400.0,0.00010958,2]
[361010838,1747203036011,-125.33597854,0.00010958,2]
[361010839,1747203036035,-298.695,0.00010958,2]
[361010840,1747203036061,-294.92902146,0.00010958,2]
[361010841,1747203036078,-400.0,0.00010958,2]
[361010842,1747203036096,-695.19,0.00010958,2]
[361010843,1747203036113,-400.0,0.00010958,2]
[361010844,1747203036130,-400.0,0.00010958,2]
[361010845,1747203036147,-400.0,0.00010958,2]
[361010846,1747203036163,-954.44,0.00010958,2]
[361010847,1747203036178,-400.0,0.00010958,2]
[361010848,1747203036197,-835.08,0.00010958,2]
[361010849,1747203036212,-281.52159672,0.00010958,2]
[361010850,1747203036235,-118.47840328,0.00010958,2]
[361010851,1747203036252,-400.0,0.00010958,2]
[361010852,1747203036267,-400.0,0.00010958,2]
[361010853,1747203036284,-1329.63,0.00010958,2]
[361010854,1747203036301,-400.0,0.00010958,2]
[361010855,1747203036318,-192.36478974,0.00010958,2]
[361010856,1747203036338,-207.63521026,0.00010958,2]
[361010857,1747203036354,-387.75533166,0.00010958,2]
[361010858,1747203036373,-12.24466834,0.00010958,2]
[361010859,1747203036388,-400.0,0.00010958,2]
[361010860,1747203036404,-201.06837548,0.00010958,2]
[361010861,1747203036420,-400.0,0.00010958,2]
[361010862,1747203036435,-400.0,0.00010958,2]
[361010863,1747203036452,-781.19,0.00010958,2]
[361010864,1747203036468,-400.0,0.00010958,2]
[361010865,1747203036484,-400.0,0.00010958,2]
[361010866,1747203036499,-400.0,0.00010958,2]
[361010867,1747203036515,-400.0,0.00010958,2]
[361010868,1747203036531,-400.0,0.00010958,2]
[361010869,1747203036548,-400.0,0.00010958,2]
[361010870,1747203036564,-278.53219463,0.00010958,2]
[361010871,1747203036589,-158.60780537,0.00010958,2]
[361010872,1747203036604,-974.73,0.00010958,2]
[361010873,1747203036621,-400.0,0.00010958,2]
[361010874,1747203036636,-344.99007549,0.00010958,2]
[361010875,1747203036654,-55.00992451,0.00010958,2]
[361010876,1747203036669,-400.0,0.00010958,2]
[361010877,1747203036684,-400.0,0.00010958,2]
[361010878,1747203036700,-400.0,0.00010958,2]
[361010879,1747203036715,-400.0,0.00010958,2]
[361010880,1747203036731,-400.0,0.00010958,2]
[361010881,1747203036748,-413.45,0.00010958,2]
[361010882,1747203036762,-760.95,0.00010958,2]
[361010883,1747203036779,-189.37899796,0.00010958,2]
[361010884,1747203036794,-1031.21107754,0.00010958,2]
[361010885,1747203036813,-249.88892246,0.00010958,2]
[361010886,1747203036829,-122.62107852,0.00010958,2]
[361010889,1747203038377,-187.08023611,0.000109,2]
[361010890,1747203038386,-1191.70892148,0.00010958,2]
[361010891,1747203038397,-400.0,0.00010958,2]
[361010892,1747203038408,-400.0,0.00010958,2]
[361010893,1747203038419,-400.0,0.00010958,2]
[361010894,1747203038429,-400.0,0.00010958,2]
[361010895,1747203038439,-400.0,0.00010958,2]
[361010896,1747203038448,-395.25473461,0.00010958,2]
[361010897,1747203038458,-400.0,0.00010958,2]
[361010898,1747203038467,-400.0,0.00010958,2]
[361010899,1747203038477,-405.02211841,0.00010958,2]
[361010900,1747203038488,-400.0,0.00010958,2]
[361010901,1747203038498,-215.82255768,0.00010958,2]
[361010902,1747203038508,-400.0,0.00010958,2]
[361010903,1747203038517,-705.8,0.00010958,2]
[361010904,1747203038528,-400.0,0.00010958,2]
[361010905,1747203038539,-556.87,0.00010958,2]
[361010906,1747203038549,-616.68,0.00010958,2]
[361010908,1747203038559,-400.0,0.00010958,2]
[361010909,1747203038568,-401.18586149,0.00010958,2]
[361010910,1747203038579,-400.0,0.00010958,2]
[361010911,1747203038589,-400.0,0.00010958,2]
[361010912,1747203038600,-407.11030826,0.00010958,2]
[361010913,1747203038609,-691.03,0.00010958,2]
[361010914,1747203038619,-1468.1,0.00010958,2]
[361010915,1747203038628,-400.0,0.00010958,2]
[361010916,1747203038637,-464.35096446,0.00010958,2]
[361010917,1747203038646,-400.0,0.00010958,2]
[361010918,1747203038665,-400.0,0.00010958,2]
[361010919,1747203038676,-508.02775508,0.00010958,2]
[361010920,1747203038687,-400.0,0.00010958,2]
[361010921,1747203038698,-156.99467303,0.00010958,2]
[361010922,1747203038707,-400.0,0.00010958,2]
[361010923,1747203038717,-509.67656792,0.00010958,2]
[361010924,1747203038727,-400.0,0.00010958,2]
[361010925,1747203038736,-702.12,0.00010958,2]
[361010926,1747203038746,-400.0,0.00010958,2]
[361010927,1747203038756,-400.0,0.00010958,2]
[361010928,1747203038766,-481.03305766,0.00010958,2]
[361010929,1747203038776,-400.0,0.00010958,2]
[361010930,1747203038785,-524.04,0.00010958,2]
[361010931,1747203038794,-512.36760354,0.00010958,2]
[361010932,1747203038804,-400.0,0.00010958,2]
[361010933,1747203038814,-400.0,0.00010958,2]
[361010934,1747203038823,-400.0,0.00010958,2]
[361010935,1747203038833,-511.14,0.00010958,2]
[361010936,1747203038844,-460.28,0.00010958,2]
[361010937,1747203038855,-454.78,0.00010958,2]
[361010938,1747203038865,-672.24,0.00010958,2]
[361010939,1747203038875,-459.49,0.00010958,2]
[361010940,1747203038885,-400.0,0.00010958,2]
[361010941,1747203038895,-400.0,0.00010958,2]
[361010942,1747203038907,-400.0,0.00010958,2]
[361010943,1747203038918,-400.0,0.00010958,2]
[361010944,1747203038928,-1008.37,0.00010958,2]
[361010945,1747203038938,-400.0,0.00010958,2]
[361010946,1747203038949,-400.0,0.00010958,2]
[361010947,1747203038960,-495.44,0.00010958,2]
[361010948,1747203038972,-400.0,0.00010958,2]
[361010949,1747203038983,-400.0,0.00010958,2]
[361010950,1747203038994,-917.05,0.00010958,2]
[361010951,1747203039003,-400.0,0.00010958,2]
[361010952,1747203039015,-400.0,0.00010958,2]
[361010953,1747203039024,-400.0,0.00010958,2]
[361010954,1747203039033,-400.0,0.00010958,2]
[361010955,1747203039045,-400.0,0.00010958,2]
[361010956,1747203039055,-2000.0,0.00010958,2]
[361010957,1747203039065,-400.0,0.00010958,2]
[361010958,1747203039074,-400.0,0.00010958,2]
[361010959,1747203039084,-404.38,0.00010958,2]
[361010960,1747203039094,-400.0,0.00010958,2]
[361010961,1747203039104,-515.22,0.00010958,2]
[361010962,1747203039115,-400.0,0.00010958,2]
[361010963,1747203039125,-400.0,0.00010958,2]
[361010964,1747203039136,-400.0,0.00010958,2]
[361010965,1747203039145,-400.0,0.00010958,2]
[361010966,1747203039155,-400.0,0.00010958,2]
[361010967,1747203039165,-852.87,0.00010958,2]
[361010968,1747203039175,-400.0,0.00010958,2]
[361010969,1747203039184,-553.86,0.00010958,2]
[361010970,1747203039194,-669.19,0.00010958,2]
[361010971,1747203039203,-664.76,0.00010958,2]
[361010972,1747203039214,-1311.34,0.00010958,2]
[361010973,1747203039223,-400.0,0.00010958,2]
[361010974,1747203039233,-400.0,0.00010958,2]
[361010975,1747203039243,-400.0,0.00010958,2]
[361010976,1747203039253,-406.04,0.00010958,2]
[361010977,1747203039262,-400.0,0.00010958,2]
[361010978,1747203039272,-400.0,0.00010958,2]
[361010979,1747203039281,-400.0,0.00010958,2]
[361010980,1747203039291,-400.0,0.00010958,2]
[361010981,1747203039300,-400.0,0.00010958,2]
[361010982,1747203039310,-782.25,0.00010958,2]
[361010983,1747203039320,-400.0,0.00010958,2]
[361010984,1747203039329,-400.0,0.00010958,2]
[361010985,1747203039339,-453.78,0.00010958,2]
[361010986,1747203039348,-400.0,0.00010958,2]
[361010987,1747203039358,-400.0,0.00010958,2]
[361010988,1747203039367,-400.0,0.00010958,2]
[361010989,1747203039377,-400.0,0.00010958,2]
[361010990,1747203039386,-400.0,0.00010958,2]
[361010991,1747203039396,-400.0,0.00010958,2]
[361010992,1747203039406,-745.42,0.00010958,2]
[361010993,1747203039416,-400.0,0.00010958,2]
[361010994,1747203039425,-400.0,0.00010958,2]
[361010995,1747203039435,-400.0,0.00010958,2]
[361010996,1747203039445,-951.93,0.00010958,2]
[361010997,1747203039456,-400.0,0.00010958,2]
[361010998,1747203039466,-404.60058769,0.00010958,2]
[361010999,1747203039475,-447.77,0.00010958,2]
[361011000,1747203039485,-400.0,0.00010958,2]
[361011001,1747203039495,-400.0,0.00010958,2]
[361011002,1747203039505,-461.55149397,0.00010958,2]
[361011003,1747203039514,-400.0,0.00010958,2]
[361011004,1747203039523,-930.71,0.00010958,2]
[361011005,1747203039533,-621.94,0.00010958,2]
[361011006,1747203039543,-400.0,0.00010958,2]
[361011007,1747203039552,-401.10674599,0.00010958,2]
[361011008,1747203039563,-400.0,0.00010958,2]
[361011009,1747203039573,-400.0,0.00010958,2]
[361011010,1747203039582,-1105.12,0.00010958,2]
[361011011,1747203039593,-400.0,0.00010958,2]
[361011012,1747203039603,-400.0,0.00010958,2]
[361011013,1747203039613,-400.0,0.00010958,2]
[361011014,1747203039623,-357.66360086,0.00010958,2]
[361011015,1747203039634,-400.0,0.00010958,2]
[361011016,1747203039644,-401.45796378,0.00010958,2]
[361011017,1747203039654,-400.0,0.00010958,2]
[361011018,1747203039664,-400.0,0.00010958,2]
[361011019,1747203039906,-400.0,0.00010958,2]
[361011020,1747203039919,-400.0,0.00010958,2]
[361011021,1747203039929,-400.0,0.00010958,2]
[361011022,1747203039941,-400.0,0.00010958,2]
[361011023,1747203039950,-400.0,0.00010958,2]
[361011024,1747203039959,-400.0,0.00010958,2]
[361011025,1747203039972,-400.0,0.00010958,2]
[361011026,1747203039981,-400.0,0.00010958,2]
[361011027,1747203039990,-400.78207792,0.00010958,2]
[361011028,1747203039999,-400.0,0.00010958,2]
[361011029,1747203040009,-400.0,0.00010958,2]
[361011030,1747203040018,-400.0,0.00010958,2]
[361011031,1747203040027,-401.46998051,0.00010958,2]
[361011032,1747203040037,-400.0,0.00010958,2]
[361011033,1747203040046,-1642.57,0.00010958,2]
[361011034,1747203040057,-400.0,0.00010958,2]
[361011035,1747203040066,-400.0,0.00010958,2]
[361011036,1747203040076,-400.0,0.00010958,2]
[361011037,1747203040085,-400.0,0.00010958,2]
[361011038,1747203040094,-894.6,0.00010958,2]
[361011039,1747203040103,-410.54585396,0.00010958,2]
[361011040,1747203040113,-400.0,0.00010958,2]
[361011041,1747203040123,-400.0,0.00010958,2]
[361011042,1747203040132,-400.0,0.00010958,2]
[361011043,1747203040141,-412.79425552,0.00010958,2]
[361011044,1747203040150,-400.0,0.00010958,2]
[361011045,1747203040159,-400.0,0.00010958,2]
[361011046,1747203040169,-400.0,0.00010958,2]
[361011047,1747203040178,-400.0,0.00010958,2]
[361011048,1747203040187,-451.10049201,0.00010958,2]
[361011049,1747203040197,-424.82,0.00010958,2]
[361011050,1747203040206,-400.0,0.00010958,2]
[361011051,1747203040216,-1242.13,0.00010958,2]
[361011052,1747203040226,-871.41,0.00010958,2]
[361011053,1747203040235,-400.0,0.00010958,2]
[361011054,1747203040245,-400.0,0.00010958,2]
[361011055,1747203040254,-400.0,0.00010958,2]
[361011056,1747203040263,-441.47459757,0.00010958,2]
[361011057,1747203040272,-400.0,0.00010958,2]
[361011058,1747203040282,-400.0,0.00010958,2]
[361011059,1747203040291,-400.0,0.00010958,2]
[361011060,1747203040301,-400.0,0.00010958,2]
[361011061,1747203040310,-400.0,0.00010958,2]
[361011062,1747203040319,-400.0,0.00010958,2]
[361011063,1747203040329,-400.0,0.00010958,2]
[361011064,1747203040338,-314.12606974,0.00010958,2]
[361011065,1747203040348,-269.75545198,0.00010958,2]
[361011066,1747203040357,-400.0,0.00010958,2]
[361011067,1747203040367,-403.20874941,0.00010958,2]
[361011068,1747203040376,-400.0,0.00010958,2]
[361011069,1747203040385,-400.0,0.00010958,2]
[361011070,1747203040395,-731.06,0.00010958,2]
[361011071,1747203040405,-434.92,0.00010958,2]
[361011072,1747203040414,-400.0,0.00010958,2]
[361011073,1747203040423,-400.0,0.00010958,2]
[361011074,1747203040433,-400.0,0.00010958,2]
[361011075,1747203040442,-400.77697481,0.00010958,2]
[361011076,1747203040452,-418.43563048,0.00010958,2]
[361011077,1747203040461,-400.0,0.00010958,2]
[361011078,1747203040471,-400.0,0.00010958,2]
[361011079,1747203040481,-405.34215167,0.00010958,2]
[361011080,1747203040491,-400.0,0.00010958,2]
[361011081,1747203040500,-400.77840812,0.00010958,2]
[361011082,1747203040510,-400.0,0.00010958,2]
[361011083,1747203040519,-400.0,0.00010958,2]
[361011084,1747203040529,-598.01,0.00010958,2]
[361011085,1747203040543,-400.0,0.00010958,2]